Cogmind - Beta 15 @@@ ROGUE MODE // 2025.08.06 @ 16:40:07 Player: Nikita Rogalichkin Result: Core destroyed Performance ------------- Evolutions (1) 500 Regions Visited (3) 600 Robots Destroyed (35) 175 Value Destroyed (893) 893 Prototype IDs (1) 20 Alien Tech Used (0) 0 Bonus (0) 0 TOTAL SCORE: 2188 Bonus ------- None Cogmind --------- Core Integrity 0/400 Matter 189/300 Energy 118/275 System Corruption 1% Temperature Critical (627) Movement Core (250) Ox4 Location -9/Mines Parts ------- > --- POWER (2) -------- Deuterium Engine > --- PROPULSION (3) --- (None) > --- UTILITY (2) ------ Large Storage Unit Weight Redist. System > --- WEAPON (2) ------- EM Pulse Cannon Particle Cannon > --- INVENTORY (15) --- Deuterium Engine Deuterium Engine Armored Treads Large Storage Unit High-capacity Battery (250) Large Matter Pod (150) Sensor Array Utility Shielding EM Shotgun EM Shotgun Particle Gun Particle Gun Particle Gun EM Pulse Cannon Improved Light Cannon Peak State ------------ > --- POWER ------------ Deuterium Engine Deuterium Engine > --- PROPULSION ------- Armored Treads Armored Treads Armored Treads > --- UTILITY ---------- Large Storage Unit Signal Interpreter > --- WEAPON ----------- EM Pulse Cannon EM Pulse Cannon > --- INVENTORY -------- Deuterium Engine Deuterium Engine Large Storage Unit High-capacity Battery Large Matter Pod Weight Redist. System Sensor Array Utility Shielding Improved EM Shotgun EM Pulse Cannon EM Pulse Cannon Beam Cannon Particle Cannon Improved Light Cannon Katana [Rating: 26] Favorites ----------- Power Deuterium Engine Engine Deuterium Engine Propulsion Aluminum Leg Treads Armored Treads Leg Aluminum Leg Utility Large Storage Unit Device Sensor Array Storage Large Storage Unit Processor Targeting Computer Weapon Light Assault Rifle Energy Gun Particle Gun Energy Cannon EM Pulse Cannon Ballistic Gun Light Assault Rifle Ballistic Cannon Improved Light Cannon Slashing Weapon Katana Build | -11 -10 -9 -9 ------- Run | Yrd Mat Mat Min Slots Evolved 2 | . . 2 . Power 1 | . . 1 . Propulsion 1 | . . 1 . Utility . | . . . . Weapon . | . . . . Parts Attached 38 | 6 4 28 . Power 7 | 1 1 5 . Engine 7 | 1 1 5 . Core . | . . . . Reactor . | . . . . Propulsion 10 | 2 . 8 . Treads 3 | . . 3 . Leg 7 | 2 . 5 . Wheel . | . . . . Hover . | . . . . Flight . | . . . . Utility 8 | 1 3 4 . Device 2 | . 1 1 . Storage 4 | 1 1 2 . Processor 2 | . 1 1 . Hackware . | . . . . Protection . | . . . . Artifact . | . . . . Weapon 13 | 2 . 11 . Energy Gun 3 | . . 3 . Energy Cannon 5 | . . 5 . Ballistic Gun 3 | 2 . 1 . Ballistic Cannon 1 | . . 1 . Launcher . | . . . . Special Weapon . | . . . . Impact Weapon . | . . . . Slashing Weapon 1 | . . 1 . Piercing Weapon . | . . . . Special Melee Weapon . | . . . . Unidentified Prototypes 1 | . . 1 . Parts Lost 8 | . . 5 3 Power 2 | . . 1 1 Propulsion 3 | . . 1 2 Utility . | . . . . Weapon 3 | . . 3 . Highest Loss Streak 3 | . . 3 3 To Critical Strikes . | . . . . Average Backups 13 | 2 12 14 15 Power 2 | . 2 1 2 Propulsion 2 | 1 2 1 1 Utility 5 | . 5 6 5 Weapon 3 | . 1 4 7 Tool/Special . | . . . . Unused Backups 22 | . 1 11 10 Power 3 | . . 1 2 Propulsion 2 | . . 2 . Utility 10 | . 1 5 4 Weapon 7 | . . 3 4 Tool/Special . | . . . . Average Slot Usage (%) 96 | . 99 96 86 Engine 19 | . 14 21 21 Treads 5 | . . 9 . Leg 22 | . 28 20 20 Device 7 | . 4 7 11 Storage 11 | . 14 11 11 Processor 4 | . 8 3 . Energy Gun 3 | . . 2 21 Energy Cannon 6 | . . 10 1 Ballistic Gun 13 | . 28 7 . Peak Build Rating 26 | 6 8 26 20 Average Rating 14 | 3 7 17 19 On Entrance 8 | . 6 8 20 Naked Turns . | . . . . Heaviest Build 51 | 11 27 51 44 Greatest Support 60 | 20 20 60 32 Greatest Overweight (x) 15 | . 1 15 1 Average Overweight (x) . | . . . 1 Largest Inventory Capacity 15 | 8 15 15 15 Average Capacity 14 | 6 13 15 15 Most Carried 15 | 5 15 15 15 Average Carried 13 | 3 12 14 15 Final Capacity 15 | 8 15 15 15 Final Carried 15 | 4 15 15 15 Class Distribution -------------------- 100% | Mutant Dominant Class ---------------- Mutant | -10/Materials Mutant | -9/Materials Mutant | -9/Mines Resources | -11 -10 -9 -9 ----------- Run | Yrd Mat Mat Min Matter Collected 1119 | 214 366 539 . Remotely . | . . . . Salvage Created 1273 | . 74 1152 47 Parts 74 | . 5 66 3 Haulers Intercepted . | . . . . Recyclers Shooed . | . . . . Parts Field Recycled . | . . . . Retrieved Matter . | . . . . Parts Self-Destructed . | . . . . Prevented . | . . . . Kills | -11 -10 -9 -9 ------- Run | Yrd Mat Mat Min Combat Hostiles Destroyed 25 | . 1 23 1 Guns 12 | . 1 10 1 Cannons 9 | . . 9 . AOE 2 | . . 2 . Classes Destroyed 10 | . 2 7 1 Worker 4 | . . 4 . Builder 1 | . . 1 . Recycler 1 | . . 1 . Mechanic 1 | . . 1 . Watcher 3 | . 1 2 . Swarmer 7 | . . 7 . Grunt 11 | . 1 10 . Duelist 2 | . . 2 . Sentry 4 | . . 4 . Demolisher 1 | . . . 1 Best Kill Streak 7 | . 1 7 1 Combat Bots Only 4 | . 1 4 1 Max Kills in Single Turn 2 | . 1 2 1 Gunslinging . | . . . . Exploded 2 | . . 2 . Melee . | . . . . Uniques/NPCs Destroyed . | . . . . Combat | -11 -10 -9 -9 -------- Run | Yrd Mat Mat Min Hostile Shots Fired 145 | . 16 118 11 Missed 24 | . 3 20 1 Hits 121 | . 13 98 10 Melee 12 | . . 12 . Projectile 109 | . 13 86 10 AOE 10 | . . . 10 Critical Strikes 6 | . . 6 . Damage Taken 2126 | . 175 1454 497 Core 424 | . 16 233 175 Absorbed by Shields . | . . . . Core Remaining (%) 96 | 100 93 . . Volleys Fired 94 | . 10 74 10 Largest 2 | . 2 2 2 Hottest 131 | . 40 131 131 Shots Fired 164 | . 20 124 20 Gun 77 | . 20 45 12 Cannon 87 | . . 79 8 Launcher . | . . . . Special . | . . . . Kinetic 46 | . 20 26 . Thermal 38 | . . 22 16 Explosive . | . . . . Electromagnetic 80 | . . 76 4 Robot Hit Streak 18 | . 4 18 5 Robot Miss Streak 3 | . 2 3 2 Penetration Max . | . . . . Secondary Targets 1 | . . 1 . Max Gunslinging Chain 1 | . . 1 . Shots Hit Robots 110 | . 10 86 14 Core Hits 46 | . 5 37 4 Critical Kills 1 | . . 1 . Critical Parts Destroyed . | . . . . Critical Strikes 3 | . . 3 . Destroy 1 | . . 1 . Corrupt 2 | . . 2 . Melee Attacks 2 | . . 2 . Impact . | . . . . Slashing 2 | . . 2 . Piercing . | . . . . Sneak Attacks . | . . . . Combat Hostiles . | . . . . Follow-up Attacks . | . . . . Damage Inflicted 2408 | . 110 2054 244 Guns 796 | . 110 526 160 Cannons 1337 | . . 1253 84 Explosions 251 | . . 251 . Melee 21 | . . 21 . Ramming 3 | . . 3 . Kinetic 439 | . 110 329 . Thermal 562 | . . 340 222 Explosive . | . . . . Electromagnetic 1383 | . . 1361 22 Impact . | . . . . Slashing 21 | . . 21 . Piercing . | . . . . Highest Corruption 5 | . 5 1 1 Average Corruption 2 | . 4 1 1 Corruption Purged . | . . . . Corruption Blocked . | . . . . Effects 27 | . 22 4 1 Message Errors 6 | . 5 . 1 Matter Fused 7 | . 5 2 . Heat Flow Errors 6 | . 4 2 . Energy Discharges 4 | . 4 . . Data Loss (minor) 2 | . 2 . . Data Loss (major) 1 | . 1 . . Alerts 1 | . 1 . . Overload Shots . | . . . . Overflow Damage 22 | . . 22 . Projectiles 22 | . . 22 . Explosions . | . . . . Melee . | . . . . Knockbacks . | . . . . Impact . | . . . . Kinetic . | . . . . Secondary . | . . . . Self-Inflicted Damage 75 | . . 75 . Shots 2 | . . 2 . Rammed . | . . . . Targets Rammed 1 | . . 1 . Kicked 1 | . . 1 . Crushed . | . . . . Highest Temperature 627 | . 255 607 627 Average Temperature 175 | . 98 170 368 Received Heat Transfer 495 | . 102 393 . Effects 36 | . 1 26 9 Shutdowns 13 | . . 11 2 Energy Bleed 5 | . 1 2 2 Interference 7 | . . 7 . Matter Decay 4 | . . 2 2 Short Circuit 1 | . . . 1 Damage (minor) 4 | . . 4 . Damage (core) 2 | . . . 2 Siege Activations . | . . . . Martial Activations . | . . . . Shielding Activations . | . . . . Robots Disrupted . | . . . . Combat Hostiles . | . . . . Robots Corrupted 2 | . . 2 . Combat Hostiles 2 | . . 2 . Parts Fried 5 | . . 5 . Impact Corruptions . | . . . . Robots Melted . | . . . . Combat Hostiles . | . . . . Parts Melted . | . . . . Heat Transferred 1114 | . . 633 481 Parts Sabotaged . | . . . . Parts Stolen . | . . . . Parts Stripped . | . . . . Power Chain Reactions 3 | . . 3 . Alert | -11 -10 -9 -9 ------- Run | Yrd Mat Mat Min Maximum Alert Level 1 | . . 1 . Low Security (%) 86 | 100 100 77 100 Level 1 13 | . . 22 . Level 2 . | . . . . Level 3 . | . . . . Level 4 . | . . . . Level 5 . | . . . . High Security . | . . . . Max Security . | . . . . Peak Influence 292 | . 35 292 109 Initial 109 | . . . 109 Average 64 | . 1 96 61 Influence Increases 794 | . 52 712 30 Destroy 0b10 Robot/C 500 | . 20 460 20 Destroy 0b10 Robot/NC 50 | . 5 45 . Destroy Leader 146 | . 12 124 10 Successful Hack 10 | . . 10 . Disable Machine 30 | . . 30 . Destroy Structure 13 | . . 13 . Lose Combat Pursuer 45 | . 15 30 . Influence Decreases 785 | . 52 429 304 Entered New Map 174 | . . . 174 Time Decay 541 | . 52 389 100 Lost Part 70 | . . 40 30 Squads Dispatched 5 | . 1 4 . Investigation 2 | . . 2 . Extermination . | . . . . Reinforcement 3 | . 1 2 . Assault . | . . . . Garrison . | . . . . Intercept . | . . . . Searches Triggered . | . . . . Construction Impeded 1 | . . 1 . Haulers Reinforced . | . . . . Active Scanning Responses . | . . . . Cargo Convoy Interrupts . | . . . . Stealth | -11 -10 -9 -9 --------- Run | Yrd Mat Mat Min Distress Signals 4 | . 2 2 . Communications Jammed . | . . . . Distress Signals . | . . . . Times Spotted 38 | . 5 31 2 Peak Tracking Total 5 | . 2 5 2 Tactical Retreats 2 | . 1 1 . Traps | -11 -10 -9 -9 ------- Run | Yrd Mat Mat Min Traps Triggered 4 | . 3 1 . Indirectly . | . . . . Trap Hack Attempts . | . . . . Triggered . | . . . . Disarmed . | . . . . Reprogrammed . | . . . . Reused . | . . . . Traps Extracted . | . . . . Installed . | . . . . Triggered . | . . . . Machines | -11 -10 -9 -9 ---------- Run | Yrd Mat Mat Min Machines Disabled 2 | . . 2 . Max in Single Turn 1 | . . 1 . Machines Repaired . | . . . . Machines Dismantled . | . . . . Machines Sabotaged . | . . . . Overloaded Fab Kills . | . . . . Hacking | -11 -10 -9 -9 --------- Run | Yrd Mat Mat Min Machines Accessed 6 | . 3 3 . Terminals 3 | . 2 1 . Fabricators . | . . . . Repair Stations . | . . . . Recycling Units 2 | . 1 1 . Scanalyzers 1 | . . 1 . Garrison Access . | . . . . Total Hacks 18 | . 9 9 . Successful 13 | . 7 6 . Failed 5 | . 2 3 . Catastrophic . | . . . . Database Lockouts . | . . . . Manual . | . . . . Terminals 10 | . 8 2 . Fabricators . | . . . . Repair Stations . | . . . . Recycling Units 4 | . 1 3 . Scanalyzers 4 | . . 4 . Garrison Access . | . . . . Terminal Hacks 7 | . 6 1 . Record 6 | . 5 1 . Reinforcement Status 1 | . 1 . . Fabricator Hacks . | . . . . Repair Station Hacks . | . . . . Recycling Unit Hacks 4 | . 1 3 . Process 2 | . 1 1 . Report Inventory 2 | . . 2 . Scanalyzer 2 | . . 2 . Insert Component 1 | . . 1 . Analyze 1 | . . 1 . Garrison Access Hacks . | . . . . Unauthorized Hacks . | . . . . Terminals . | . . . . Fabricators . | . . . . Repair Stations . | . . . . Recycling Units . | . . . . Scanalyzers . | . . . . Garrison Access . | . . . . Data Cores Recovered . | . . . . Used . | . . . . Hacking Detections 4 | . 1 3 . Full Trace Events 1 | . . 1 . Feedback Events . | . . . . Feedback Blocked . | . . . . Robot Schematics Acquired . | . . . . Robots Built . | . . . . Authchips . | . . . . Time . | . . . . Total Robot Build Rating . | . . . . Part Schematics Acquired 1 | . . 1 . Parts Built . | . . . . Authchips . | . . . . Time . | . . . . Total Part Build Rating . | . . . . Parts Repaired . | . . . . Time . | . . . . Parts Recycled . | . . . . Recycled Matter 26 | . 4 22 . Retrieved Matter . | . . . . Retrieved Components . | . . . . Parts Scanalyzed 1 | . . 1 . Part Schematics Acquired 1 | . . 1 . Parts Damaged . | . . . . Bothacking | -11 -10 -9 -9 ------------ Run | Yrd Mat Mat Min Used RIF Installer . | . . . . Robots Hacked . | . . . . Non-combat . | . . . . Combat . | . . . . Robot Hacks Applied . | . . . . Relay Couplers Released . | . . . . Fabnet Peak Effective % . | . . . . Robots Rewired . | . . . . Allies Hacked . | . . . . Hacks Repelled . | . . . . Allies | -11 -10 -9 -9 -------- Run | Yrd Mat Mat Min Total Allies . | . . . . Largest Group . | . . . . Highest-Rated Group . | . . . . Highest-Rated Ally . | . . . . Total Orders . | . . . . Ally Attacks . | . . . . Total Damage . | . . . . Kills . | . . . . Allies Corrupted . | . . . . Allies Melted . | . . . . Intel | -11 -10 -9 -9 ------- Run | Yrd Mat Mat Min Active Infowar (turns) 1217 | . 245 972 . Sensors 1217 | . 245 972 . Robot Analysis Total . | . . . . Derelict Logs Recovered 1 | . . . 1 Drone Launches . | . . . . Drone Recoveries . | . . . . Exploration | -11 -10 -9 -9 ------------- Run | Yrd Mat Mat Min Turns Passed 2836 | 91 789 1738 218 Spaces Moved 1358 | 58 434 768 98 Core 26 | 6 . 20 . Treads 213 | . . 213 . Legs 1119 | 52 434 535 98 Wheels . | . . . . Hover . | . . . . Flight . | . . . . Fastest Speed 50 | 50 120 120 190 Average Speed 165 | 112 168 165 190 Slowest Speed 800 | 120 190 800 190 Overloaded Moves . | . . . . Propulsion Burnouts . | . . . . Robots Hopped . | . . . . Potential Cave-ins . | . . . . Cave-ins Triggered . | . . . . Exploration Rate (%) 37 | 4 69 53 22 Regions Visited 3 Branch Regions 1 Pre-discovered Areas . | . . . . Known Exits Taken . | . . . . Unknown Exits Taken 3 | 1 1 1 . Scrap Searched . | . . . . Spaces Dug . | . . . . Terrain Destroyed 10 | . . 10 . Melee . | . . . . Projectile . | . . . . AOE 10 | . . 10 . Terrain Rammed . | . . . . Walls Destroyed . | . . . . Machines Disabled . | . . . . Actions | -11 -10 -9 -9 --------- Run | Yrd Mat Mat Min Total 1787 | 83 477 1117 110 Wait 204 | 10 12 182 . Move 1355 | 57 433 767 98 Hop . | . . . . Pick Up 55 | 10 14 31 . Fast Attach 2 | . . 2 . Attach 21 | 6 2 13 . Detach 2 | . 1 1 . Swap 23 | . 2 19 2 Drop 28 | . 3 25 . Fire 94 | . 10 74 10 Melee 2 | . . 2 . Ram . | . . . . Kick 1 | . . 1 . Crush . | . . . . Escape Stasis . | . . . . Rewire . | . . . . Trap . | . . . . Miscellaneous . | . . . . Route ------- -11/Scrapyard -10/Materials (discovered 4 exits: *Mat x2 / [*Min x2]) -9/Materials (discovered 2 exits: [*Mat] / [*Min]) -9/Mines (discovered 1 exit: [*Mat]) History --------- Turn | Location | Event 3 | -11/Scrapyard | Discovered new exit (range 15) 92 | -11/Scrapyard | Entered Materials 242 | -10/Materials | Discovered new exit (range 8) 319 | -10/Materials | Build established: Mutant 319 | -10/Materials | Discovered new exit (range 8) 465 | -10/Materials | Discovered new exit (range 11) 670 | -10/Materials | Discovered new exit (range 15) 881 | -10/Materials | Entered another Materials area 881 | -9/Materials | Evolved 2 slots: Power x1, Propulsion x1 1401 | -9/Materials | Lost 3 parts (1p1n1w) 1624 | -9/Materials | Discovered new exit (range 3) 2111 | -9/Materials | Discovered new exit (range 8) 2300 | -9/Materials | Core integrity fell below 50% 2619 | -9/Materials | Entered Mines 2665 | -9/Mines | Discovered new exit (range 4) 2669 | -9/Mines | Learned Materials garrison access intel 2797 | -9/Mines | Assembled infested the area 2835 | -9/Mines | Core integrity fell below 20% 2838 | -9/Mines | Core destroyed Last Messages --------------- 02828_ D-53 Grenadier overheating. 02828_ K-01 Serf collects debris. 02828_ U-05 Engineer lays Concrete. 02829_ Broken Deuterium Engine destroyed. 02829_ U-05 Engineer destroyed. 02830_ D-53 Grenadier heat spikes uncontrollably. 02831_ D-53 Grenadier overheating. 02831_ K-01 Serf cleans the Matter Pump. 02832_ Overheating: Matter decay (-47). 02832_ D-53 Grenadier overheating. 02833_ Overheating: Energy bleed (-21). 02833_ D-53 Grenadier overheating. 02834_ D-53 Grenadier heat spikes uncontrollably. 02834_ D-53 Grenadier overheating. 02835_ Overheating: Core damaged (-64). 02835_ D-53 Grenadier overheating. 02836_ D-53 Grenadier heat spikes uncontrollably. 02836_ D-53 Grenadier overheating. 02838_ Power failure, Deuterium Engine shutdown. 02838_ Overheating: Core damaged (-64). Map ----- +----------------------------------------------------+ | ?????????????????????????????????????????????????? | | ?????????????????????????????????????????????????? | | ?????????????????????????????????????????????????? | | ?????????????????????????????????????????????????? | | ?????????????????????????????????????????????????? | | ?????????????????????????????????????????????????? | | ?????????????????????????????????????????????????? | | ?????????????????????????????????????????????????? | | ?????????????????????????????????????????????????? | | ?????????????????????????????????????????????????? | | ?????????????????????????????????????????????????? | | ?????????????????????????????????????????????????? | | ??????????????????????????##?????????????????????? | | ?????????????????????????? ?????????????????????? | | ?????????????????????????? #?????????????????????? | | ??????????########???????? #?????????????????????? | | ??????????# #???????# ##????????????????????? | | ??????????# #??????## ##???????????????????? | | ??????????# #?????## #???????????????????? | | ??????????# #?????# #???????????????????? | | ??????????# #????## ##??????????????????? | | ??????????# #???## ##?????????????????? | | ??????####### ###??## #?????????????????? | | ??????# #????# #####?????????????? | | ??????# ##### #????# #?????????????? | | ??????# #??## #????# @ #### #?????????????? | | ??????# #?## #????# #??????????????????? | | ??????# #?# ##??# #??????????????????? | | ??????# #?# ##?# ##??????????????????? | | ??????# #?# ### ##???????????????????? | | ??????# #?# # ####????????????????????? | | ??????# #?# """ ! d ????????????????????????? | | ??????# #?# """ =% # #????????????????????????? | | ??????# #?# """ ! ####?????????????????????????? | | ??????# #?## %###????????????????????????????? | | ??????# #??## ##??????????????????????????????? | | ??????# #??## k##???????????????????????????????? | | ??????# #??# #????????????????????????????????? | | ??????# #### ###????????????????????????????????? | | ?????## ## #??????????????????????????????????? | | ?????# !< # #####??????????????????????????????? | | ????## #??????????????????????????????? | | ???## !####### #??????????????????????????????? | | ???# ###??????????????????????????????????????? | | ??## ##????????????????????????????????????????? | | ### #?????????????????????????????????????????? | | #?????????????????????????????????????????? | | ##?????????????????????????????????????????? | | ##??????????????????????????????????????????? | | ##??????????????????????????????????????????? | +----------------------------------------------------+ Best States ------------- Heat Dissipation 28 Energy Generation 23 Energy Capacity 450 Matter Stores 300 Matter Capacity 300 Sight Range 16 Robot Scan Range 14 Terrain Scan Density 10 Additional Mass Support 6 Evasion (%) 55 Targeting Accuracy 5 Recoil Reduction 3 Item Schematics ----------------- Arm. Treads | -9/Materials | Scanalyzed Robot Schematics ------------------ None Fabricated ------------ Nothing Repaired ---------- Nothing Alien Tech Used ----------------- None Achievements -------------- None Challenges ------------ None Game ------ Seed LightningCentriumBoregun Manual? 0 Play Time 00:31:58 Cumulative 2.3 hours Start 2025.07.29 @ 00:09:47 End 2025.08.06 @ 16:40:07 Sessions 3 Manual Loads 0 Difficulty Rogue Special Mode None Game No. 6 Rogue 6 Adventurer 0 Explorer 0 Win Type - Total 0 Types 0/0/0/0/0/0/0/0/0/0 Lore% 0 Gallery% 5 Achievement% 12 Wizard Run 0 Options --------- Layout 1 ASCII 1 Keyboard 0 Movement Mouse Keybinds 0 Fullscreen 1 Font 32/SmallcapsGlow Map View 77x35 Zoom Use 0% Tactical HUD 1 Map Filters NONE Filters NONE Steam 1 RUN: eae8d5d2-1588-4d9e-ab74-1049c9ebfb6d